Cogmind - Beta 16.1 @@@ ROGUE MODE // 2026.04.12 @ 13:35:56 Player: zacyquack Result: Destroyed by Y-45 Defender with Beam Rifle Performance ------------- Evolutions (0) 0 Regions Visited (4) 800 Robots Destroyed (24) 120 Value Destroyed (616) 616 Prototype IDs (23) 460 Alien Tech Used (0) 0 Bonus (300) 300 TOTAL SCORE: 2296 Bonus ------- Aligned with FarCom 300 Cogmind --------- Core Integrity 0/250 Matter 276/300 Energy 45/100 System Corruption 1% Temperature Cool (43) Movement Core (500) Ox9 Location -9/Mines Parts ------- > --- POWER (1) -------- Ion Engine > --- PROPULSION (2) --- (None) > --- UTILITY (2) ------ Large Storage Unit Core Shielding (fused) > --- WEAPON (2) ------- Heavy EM Pulse Gun > --- INVENTORY (15) --- Ion Engine Flying Fortress v7 Weight Redist. System Visual Processing Unit Targeting Computer Core Shielding Core Shielding Core Shielding Core Shielding Heavy EM Pulse Gun Heavy EM Pulse Gun Mini Grenade Launcher Peak State ------------ > --- POWER ------------ Ion Engine > --- PROPULSION ------- Light Treads > --- UTILITY ---------- Large Storage Unit Core Shielding > --- WEAPON ----------- Heavy EM Pulse Gun Heavy EM Pulse Gun > --- INVENTORY -------- Ion Engine Flying Fortress v7 Weight Redist. System Visual Processing Unit Targeting Computer Core Shielding Core Shielding Core Shielding Core Shielding Heavy EM Pulse Gun Heavy EM Pulse Gun Grenade Launcher [Rating: 12] Favorites ----------- Power Ion Engine Engine Ion Engine Propulsion Light Treads Treads Light Treads Utility Large Storage Unit Device Tractor Beam Storage Large Storage Unit Protection Core Shielding Weapon Heavy EM Pulse Gun Energy Gun Heavy EM Pulse Gun Ballistic Gun Assault Rifle Launcher Grenade Launcher Build | -11 -10 -10 -10 -9 ------- Run | Yrd Mat Min Exi Min Slots Evolved . | . . . . . Power . | . . . . . Propulsion . | . . . . . Utility . | . . . . . Weapon . | . . . . . Parts Attached 16 | 7 9 . . . Power 3 | 1 2 . . . Engine 3 | 1 2 . . . Core . | . . . . . Reactor . | . . . . . Propulsion 2 | 2 . . . . Treads 2 | 2 . . . . Leg . | . . . . . Wheel . | . . . . . Hover . | . . . . . Flight . | . . . . . Utility 5 | 2 3 . . . Device 1 | 1 . . . . Storage 3 | 1 2 . . . Processor . | . . . . . Hackware . | . . . . . Protection 1 | . 1 . . . Artifact . | . . . . . Weapon 6 | 2 4 . . . Energy Gun 3 | 1 2 . . . Energy Cannon . | . . . . . Ballistic Gun 2 | 1 1 . . . Ballistic Cannon . | . . . . . Launcher 1 | . 1 . . . Special Weapon . | . . . . . Impact Weapon . | . . . . . Slashing Weapon . | . . . . . Piercing Weapon . | . . . . . Special Melee Weapon . | . . . . . Unidentified Prototypes . | . . . . . Parts Lost 6 | . 4 . . 2 Power . | . . . . . Propulsion 2 | . 1 . . 1 Utility 1 | . 1 . . . Weapon 3 | . 2 . . 1 Highest Loss Streak 3 | . 3 . . 1 To Critical Strikes . | . . . . . Average Backups 9 | 2 6 12 12 11 Power 1 | 1 1 1 1 1 Propulsion . | . . . . 1 Utility 5 | . 4 8 7 7 Weapon 2 | . 1 3 3 2 Tool/Special . | . . . . . Unused Backups 14 | . 1 . 1 12 Power 2 | . 1 . . 1 Propulsion 1 | . . . . 1 Utility 8 | . . . 1 7 Weapon 3 | . . . . 3 Tool/Special . | . . . . . Average Slot Usage (%) 82 | . 91 85 85 71 Engine 13 | . 12 14 14 14 Treads 11 | . 21 14 14 . Device 3 | . 7 . . . Storage 14 | . 14 14 14 14 Protection 10 | . 6 14 14 14 Energy Gun 19 | . 10 28 28 28 Ballistic Gun 5 | . 12 . . . Launcher 2 | . 4 . . . Peak Build Rating 12 | 7 9 9 12 12 Average Rating 9 | 4 7 9 10 11 On Entrance 7 | . 7 9 9 12 Avg Prop Armor Cover (%) . | . . . . . Naked Turns . | . . . . . Heaviest Build 50 | 15 50 32 32 32 Greatest Support 40 | 40 40 20 20 3 Greatest Overweight (x) 10 | . 1 1 1 10 Average Overweight (x) 2 | . . 1 1 10 Largest Inventory Capacity 20 | 8 20 15 15 15 Average Capacity 14 | 7 14 15 15 15 Most Carried 15 | 5 13 12 15 15 Average Carried 10 | 2 6 12 13 14 Final Capacity 15 | 8 15 15 15 15 Final Carried 15 | 2 12 12 15 15 Class Distribution -------------------- 100% | Mutant Dominant Class ---------------- Mutant | -10/Materials Mutant | -10/Mines Mutant | -10/Exiles Mutant | -9/Mines Resources | -11 -10 -10 -10 -9 ----------- Run | Yrd Mat Min Exi Min Matter Collected 544 | 268 263 . . 13 Remotely 240 | 85 155 . . . Salvage Created 713 | 50 633 . . 30 Parts 39 | 3 31 . . 5 Haulers Intercepted 1 | . 1 . . . Recyclers Shooed 1 | . 1 . . . Parts Field Recycled . | . . . . . Retrieved Matter . | . . . . . Parts Self-Destructed . | . . . . . Prevented . | . . . . . Parts Restored . | . . . . . Kills | -11 -10 -10 -10 -9 ------- Run | Yrd Mat Min Exi Min Combat Hostiles Destroyed 17 | . 14 . . 3 Guns 13 | . 12 . . 1 AOE 4 | . 2 . . 2 Classes Destroyed 7 | 1 5 . . 1 Builder 1 | . 1 . . . Hauler 1 | . 1 . . . Recycler 1 | 1 . . . . Operator 3 | . 3 . . . Watcher 1 | . 1 . . . Swarmer 3 | . . . . 3 Grunt 14 | . 14 . . . Best Kill Streak 5 | 1 5 . . 3 Combat Bots Only 5 | . 5 . . 3 Max Kills in Single Turn 3 | 1 2 . . 3 Gunslinging . | . . . . . Exploded 2 | . 2 . . 2 Melee . | . . . . . Uniques/NPCs Destroyed . | . . . . . Combat | -11 -10 -10 -10 -9 -------- Run | Yrd Mat Min Exi Min Hostile Shots Fired 127 | . 109 . . 18 Missed 32 | . 27 . . 5 Hits 95 | . 82 . . 13 Projectile 95 | . 82 . . 13 Critical Strikes 1 | . 1 . . . Damage Taken 1190 | . 968 . . 222 Core 258 | . 221 . . 37 Absorbed by Shields . | . . . . . Redirected to Shielding 11 | . 3 . . 8 Regen/Repaired (Parts) 111 | . 111 . . . Core Remaining (%) 100 | 100 . . . . Volleys Fired 71 | 1 66 . . 4 Largest 2 | 2 2 . . 2 Hottest 90 | 70 70 . . 90 Shots Fired 133 | 2 123 . . 8 Gun 131 | 2 121 . . 8 Cannon . | . . . . . Launcher 2 | . 2 . . . Special . | . . . . . Kinetic 66 | 1 65 . . . Thermal 57 | 1 56 . . . Explosive 2 | . 2 . . . Electromagnetic 8 | . . . . 8 Robot Hit Streak 10 | 2 10 . . 2 Robot Miss Streak 5 | . 5 . . 3 Penetration Max . | . . . . . Secondary Targets 3 | . 2 . . 1 Max Gunslinging Chain 1 | . 1 . . 1 Shots Hit Robots 89 | 2 83 . . 4 Core Hits 48 | 2 42 . . 4 Critical Kills . | . . . . . Critical Parts Destroyed . | . . . . . Critical Strikes 5 | . 5 . . . Burn 5 | . 5 . . . Melee Attacks . | . . . . . Impact . | . . . . . Slashing . | . . . . . Piercing . | . . . . . Sneak Attacks . | . . . . . Combat Hostiles . | . . . . . Follow-up Attacks . | . . . . . Damage Inflicted 1384 | 23 1197 . . 164 Guns 1058 | 23 983 . . 52 Cannons . | . . . . . Explosions 302 | . 200 . . 102 Melee . | . . . . . Ramming 24 | . 14 . . 10 Kinetic 527 | 10 517 . . . Thermal 581 | 13 466 . . 102 Explosive 200 | . 200 . . . Electromagnetic 52 | . . . . 52 Impact . | . . . . . Slashing . | . . . . . Piercing . | . . . . . Highest Corruption 1 | . 1 1 1 1 Average Corruption 1 | . 1 1 1 1 Corruption Purged . | . . . . . Corruption Blocked . | . . . . . Effects 31 | . 9 . 5 17 Message Errors 8 | . 2 . 2 4 Matter Fused 9 | . 2 . 1 6 Heat Flow Errors 3 | . 1 . 1 1 Energy Discharges 6 | . 1 . 1 4 Parts Fused 2 | . 1 . . 1 Data Loss (minor) 2 | . 1 . . 1 Data Loss (major) 1 | . 1 . . . Overload Shots . | . . . . . Overflow Damage 7 | . 1 . . 6 Projectiles . | . . . . . Explosions 7 | . 1 . . 6 Melee . | . . . . . Knockbacks . | . . . . . Impact . | . . . . . Kinetic . | . . . . . Secondary . | . . . . . Self-Inflicted Damage 51 | . . . . 51 Shots 1 | . . . . 1 Rammed 9 | . 3 . . 6 Targets Rammed 9 | . 3 . . 6 Kicked . | . . . . . Crushed . | . . . . . Highest Temperature 280 | 9 280 . 97 97 Average Temperature 87 | 6 93 . 57 36 Received Heat Transfer 561 | . 525 . . 36 Effects 3 | . 3 . . . Interference 3 | . 3 . . . Siege Activations . | . . . . . Martial Activations . | . . . . . Shielding Activations . | . . . . . Robots Disrupted . | . . . . . Combat Hostiles . | . . . . . Robots Corrupted . | . . . . . Combat Hostiles . | . . . . . Parts Fried . | . . . . . Impact Corruptions . | . . . . . Robots Melted . | . . . . . Combat Hostiles . | . . . . . Parts Melted 3 | . 3 . . . Heat Transferred 1876 | 37 1739 . . 100 Parts Sabotaged . | . . . . . Parts Stolen . | . . . . . Parts Stripped . | . . . . . Power Chain Reactions . | . . . . . Alert | -11 -10 -10 -10 -9 ------- Run | Yrd Mat Min Exi Min Maximum Alert Level . | . . . . . Low Security (%) 100 | 100 100 100 . 100 Level 1 . | . . . . . Level 2 . | . . . . . Level 3 . | . . . . . Level 4 . | . . . . . Level 5 . | . . . . . High Security . | . . . . . Max Security . | . . . . . Peak Influence 168 | 5 168 4 . 105 Initial 4 | . . 4 . . Average 27 | . 47 1 . 7 Influence Increases 547 | 5 423 . . 119 Destroy 0b10 Robot/C 340 | . 280 . . 60 Destroy 0b10 Robot/NC 35 | 5 30 . . . Destroy Leader 84 | . 74 . . 10 Successful Hack 15 | . 11 . . 4 Disable Machine 30 | . . . . 30 Destroy Structure 28 | . 13 . . 15 Lose Combat Pursuer 15 | . 15 . . . Influence Decreases 547 | 5 411 12 . 119 Entered New Map 8 | . . 8 . . Time Decay 485 | 5 371 4 . 105 Lost Part 50 | . 40 . . 10 Purge Threat 4 | . . . . 4 Squads Dispatched 7 | . 7 . . . Investigation 4 | . 4 . . . Extermination . | . . . . . Reinforcement 3 | . 3 . . . Assault . | . . . . . Garrison . | . . . . . Intercept . | . . . . . Searches Triggered . | . . . . . Construction Impeded . | . . . . . Haulers Reinforced . | . . . . . Active Scanning Responses . | . . . . . Cargo Convoy Interrupts . | . . . . . Stealth | -11 -10 -10 -10 -9 --------- Run | Yrd Mat Min Exi Min Distress Signals . | . . . . . Communications Jammed . | . . . . . Distress Signals . | . . . . . Times Spotted 27 | . 22 . . 5 Peak Tracking Total 5 | . 5 . . 3 Tactical Retreats 1 | . 1 . . . Traps | -11 -10 -10 -10 -9 ------- Run | Yrd Mat Min Exi Min Traps Triggered 2 | . 2 . . . Indirectly . | . . . . . Trap Hack Attempts . | . . . . . Triggered . | . . . . . Disarmed . | . . . . . Reprogrammed . | . . . . . Reused . | . . . . . Traps Extracted . | . . . . . Installed . | . . . . . Triggered . | . . . . . Machines | -11 -10 -10 -10 -9 ---------- Run | Yrd Mat Min Exi Min Machines Disabled 3 | . . . . 3 Max in Single Turn 2 | . . . . 2 Machines Repaired . | . . . . . Machines Dismantled . | . . . . . Machines Sabotaged . | . . . . . Overloaded Fab Kills . | . . . . . Hacking | -11 -10 -10 -10 -9 --------- Run | Yrd Mat Min Exi Min Machines Accessed 9 | . 7 . 1 1 Terminals 5 | . 4 . . 1 Fabricators . | . . . . . Repair Stations 1 | . 1 . . . Recycling Units 2 | . 2 . . . Scanalyzers . | . . . . . Garrison Access . | . . . . . Total Hacks 18 | . 14 . 1 3 Successful 9 | . 6 . 1 2 Failed 9 | . 8 . . 1 Catastrophic 5 | . 4 . . 1 Database Lockouts . | . . . . . Manual 10 | . 7 . 1 2 Terminals 11 | . 8 . . 3 Fabricators . | . . . . . Repair Stations 3 | . 3 . . . Recycling Units 3 | . 3 . . . Scanalyzers . | . . . . . Garrison Access . | . . . . . Terminal Hacks 4 | . 1 . 1 2 Branch Access Points 1 | . 1 . . . Unreport Threat 1 | . . . . 1 Dispatch Records 1 | . . . . 1 Proto ID Catalog 1 | . . . 1 . Fabricator Hacks . | . . . . . Repair Station Hacks 2 | . 2 . . . Scan Component 1 | . 1 . . . Repair 1 | . 1 . . . Recycling Unit Hacks 2 | . 2 . . . Retrieve Components 2 | . 2 . . . Scanalyzer . | . . . . . Garrison Access Hacks . | . . . . . Unauthorized Hacks 1 | . 1 . . . Terminals 1 | . 1 . . . Operators 1 | . 1 . . . Fabricators . | . . . . . Repair Stations . | . . . . . Recycling Units . | . . . . . Scanalyzers . | . . . . . Garrison Access . | . . . . . Data Cores Recovered . | . . . . . Used . | . . . . . Hacking Detections 7 | . 6 . . 1 Full Trace Events 4 | . 4 . . . Feedback Events 1 | . 1 . . . Corruption 1 | . 1 . . . Feedback Blocked . | . . . . . Robot Schematics Acquired . | . . . . . Robots Built . | . . . . . Authchips . | . . . . . Time . | . . . . . Total Robot Build Rating . | . . . . . Part Schematics Acquired . | . . . . . Parts Built . | . . . . . Authchips . | . . . . . Time . | . . . . . Total Part Build Rating . | . . . . . Part Studies Acquired . | . . . . . Parts Repaired 1 | . 1 . . . Time 26 | . 26 . . . Parts Recycled . | . . . . . Recycled Matter . | . . . . . Retrieved Matter . | . . . . . Retrieved Components 12 | . 12 . . . Parts Scanalyzed . | . . . . . Part Schematics Acquired . | . . . . . Parts Damaged . | . . . . . Bothacking | -11 -10 -10 -10 -9 ------------ Run | Yrd Mat Min Exi Min Used RIF Installer . | . . . . . Robots Hacked . | . . . . . Non-combat . | . . . . . Combat . | . . . . . Robot Hacks Applied . | . . . . . Relay Couplers Released . | . . . . . Fabnet Peak Effective % . | . . . . . Robots Rewired . | . . . . . Allies Hacked . | . . . . . Hacks Repelled . | . . . . . Allies | -11 -10 -10 -10 -9 -------- Run | Yrd Mat Min Exi Min Total Allies 3 | . . . . 3 Largest Group 3 | . . . . 3 Highest-Rated Group 40 | . . . . 40 Highest-Rated Ally 16 | . . . . 16 Total Orders . | . . . . . Ally Attacks 6 | . . . . 6 Total Damage 79 | . . . . 79 Kills . | . . . . . Allies Corrupted . | . . . . . Allies Melted . | . . . . . Intel | -11 -10 -10 -10 -9 ------- Run | Yrd Mat Min Exi Min Active Infowar (turns) . | . . . . . Robot Analysis Total . | . . . . . Derelict Logs Recovered 1 | . . . . 1 Drone Launches . | . . . . . Drone Recoveries . | . . . . . Exploration | -11 -10 -10 -10 -9 ------------- Run | Yrd Mat Min Exi Min Turns Passed 4101 | 75 1844 51 496 1635 Spaces Moved 1314 | 43 753 22 207 289 Core 300 | 11 . . . 289 Treads 1014 | 32 753 22 207 . Legs . | . . . . . Wheels . | . . . . . Hover . | . . . . . Flight . | . . . . . Fastest Speed 50 | 50 160 240 240 550 Average Speed 287 | 131 210 240 240 550 Slowest Speed 550 | 160 240 240 240 550 Overloaded Moves . | . . . . . Propulsion Burnouts . | . . . . . Robots Hopped . | . . . . . Potential Cave-ins . | . . . . . Cave-ins Triggered . | . . . . . Exploration Rate (%) 48 | 3 99 10 59 70 Regions Visited 4 Branch Regions 3 Pre-discovered Areas . | . . . . . Known Exits Taken 1 | . 1 . . . Unknown Exits Taken 3 | 1 . 1 1 . Scrap Searched 1 | . . . . 1 Spaces Dug . | . . . . . Terrain Destroyed 27 | . 12 . . 15 Melee . | . . . . . Projectile . | . . . . . AOE 27 | . 12 . . 15 Terrain Rammed . | . . . . . Walls Destroyed . | . . . . . Machines Disabled . | . . . . . Actions | -11 -10 -10 -10 -9 --------- Run | Yrd Mat Min Exi Min Total 1483 | 59 894 21 208 301 Wait 36 | . 36 . . . Move 1310 | 42 752 21 206 289 Hop . | . . . . . Pick Up 31 | 9 20 . 1 1 Fast Attach . | . . . . . Attach 15 | 7 8 . . . Detach 1 | . 1 . . . Swap 2 | . 2 . . . Drop 8 | . 6 . 1 1 Fire 71 | 1 66 . . 4 Melee . | . . . . . Ram 6 | . . . . 6 Kick . | . . . . . Crush 3 | . 3 . . . Escape Stasis . | . . . . . Rewire . | . . . . . Trap . | . . . . . Miscellaneous . | . . . . . Route ------- -11/Scrapyard -10/Materials (discovered 6 exits: [*Mat x3] / *Min x2 / [*Sub]) -10/Mines -10/Exiles -9/Mines History --------- Turn | Location | Event 19 | -11/Scrapyard | Discovered new exit (range 16) 76 | -11/Scrapyard | Entered Materials 77 | -10/Materials | Met a group of wandering Federalists 235 | -10/Materials | Discovered new exit (range 8) 245 | -10/Materials | Discovered new exit (range 12) 304 | -10/Materials | Build established: Mutant 340 | -10/Materials | Discovered new exit (range 14) 340 | -10/Materials | Discovered new exit (range 12) 788 | -10/Materials | Repaired Lgt. Treads 1051 | -10/Materials | Identified exit to Mines 1088 | -10/Materials | Core integrity fell below 50% 1118 | -10/Materials | Core integrity fell below 20% 1138 | -10/Materials | Lost 3 parts (1n1u1w) 1353 | -10/Materials | Discovered new exit (range 16) 1752 | -10/Materials | Discovered new exit (range 15) 1920 | -10/Materials | Entered Mines 1961 | -10/Mines | Deemed a non-threat by the Exiles lab entrance 1961 | -10/Mines | Discovered new exit (range 5) 1971 | -10/Mines | Entered Exiles 2034 | -10/Exiles | Met 8R-AWN 2075 | -10/Exiles | Met EX-HEX 2139 | -10/Exiles | Met EX-BIN 2168 | -10/Exiles | Aligned with FarCom system 2171 | -10/Exiles | Given EX-Vault access code 2226 | -10/Exiles | Opened EX-Vault 2243 | -10/Exiles | Found Flying Fortress v7 2290 | -10/Exiles | Warned to stay clear of 0b10 Research branches 2359 | -10/Exiles | Met EX-DEC 2441 | -10/Exiles | Discovered new exit (range 12) 2467 | -10/Exiles | Left Exiles lab with Flying Fortress v7 2467 | -10/Exiles | Entered Mines 2586 | -9/Mines | Met a Derelict bent on vengeance 3029 | -9/Mines | Assisted by bots powering up and referring to "LRC-V3" 3668 | -9/Mines | Learned 4 Materials zone layouts 4102 | -9/Mines | Destroyed by Y-45 Defender with Beam Rifle Last Messages --------------- 03451_ U-05 Engineer lays Concrete. 03453_ T-07 Excavator is excavating. 03467_ U-05 Engineer lays Concrete. 03476_ System corrupted: Matter fused (-8). 03556_ MK|V&MDTF2|W:96DGVY/WYWT 03591_ Slammed into K-01 Serf. 03591_ Ion Engine broken. 03591_ Destabilizing: Short circuit. 03603_ System corrupted: Energy discharge (-21). 03608_ Slammed into K-01 Serf. 03668_ Acquired derelict log, extracted data. Data stored: Materials zone layouts (x4). 03716_ 91-JI1(g): "TASTE MY VENGEANCE!" 03745_ Slammed into K-01 Serf. 03785_ System corrupted: Matter fused (-8). 04014_ System corrupted: Energy discharge (-33). 04032_ System corrupted: Component data lost. 04097_ Machine disabled. 04099_ Trooper 2a destroyed. 04102_ Hvy. EM Pulse Gun destroyed. Map ----- +----------------------------------------------------+ | ##???## ##???# ###### ## | | #?????## ##????# # ##????# #? | | ##?????## ######?????# ####?????# #? | | #??##### ## ##??????????# #????????# #? | | ??## #### ############## #????????# #? | | ?## ##?# ## #????????# #? | | ?# ### ## ##############????????# ## | | ?# #?????????????????????# | | ?## ########?????????????????????#### | | ### ##??????????????????????????????? | | ##?????????????????????????????? | | #??????????????????????????#### | | ##### #??????????????????????????# | | #???## ##????????####??????????????# | | #????## ########????????? #####?????????## | | #?????######???????????????? ??????????## | | ?????????????????????????? ???????????## | | #????????????????????????? ????????????## | | #????????????????????????# ?????????????## | | #????????????????????????## ??????????????## | | #?????????????????????????# #??????????????## | | ?????????????????????###?## #???????????????# | | ????????????????????##"Y## #????????????????# | | ????????????????????#"" # #?????????######?# | | ????????????????????#![ %g[ #######??## ### | | ????????????????????#!! @g ## #### ### # | | ????????????????????#" # ## #?# # | | ????????????????????##"Y## ### # | | ?????????????????????###?# # | | ????????????????????# ## #### # | | ????????????????????# ###### ####??# # | | ????????????????????## ####????## ##?????# # | | ?????????????????????#######????????#####??????# # | | ???????????????????????????????????????????????# # | | ??????????????????????????????????????????????? | | ??????????????????????????????????????????????? | | ??????????????????????????????????????????????? ## | | ??????????????????????????????????????????????? ?? | | ??????????????????????????????????????????????? ?? | | ??????????????????????????????????????????????? ?? | | ??????????????????????????????????????????????? ?? | | ??????????????????????????????????????????????? ?? | | ??????????????????????????????????????????????? ?? | | ??????????????????????????????????????????????? ?? | | ?????????????????????????????????????????????????? | | ?????????????????????????????????????????????????? | | ?????????????????????????????????????????????????? | | ?????????????????????????????????????????????????? | | ?????????????????????????????????????????????????? | | ?????????????????????????????????????????????????? | +----------------------------------------------------+ Best States ------------- Heat Dissipation 25 Energy Generation 10 Energy Capacity 250 Matter Stores 300 Matter Capacity 300 Sight Range 16 Terrain Scan Density 10 Core Shielding 20 Evasion (%) 50 Recoil Reduction 2 Item Schematics ----------------- None Robot Schematics ------------------ None Fabricated ------------ Nothing Repaired ---------- Lgt. Treads | 20% | -10/Materials Studied --------- None Alien Tech Used ----------------- None Achievements -------------- None Challenges ------------ None Game ------ Seed TransportIonAutobeam Manual? 0 Play Time 00:15:51 Cumulative 22.1 hours Start 2026.04.12 @ 13:22:01 End 2026.04.12 @ 13:35:56 Sessions 1 Manual Loads 0 Difficulty Rogue Special Mode None Game No. 35 Rogue 35 Adventurer 0 Explorer 0 Win Type - Total 0 Types 0/0/0/0/0/0/0/0/0/0 Lore% 12 Gallery% 20 Achievement% 19 Wizard Run 0 Options --------- Layout 1 ASCII 0 Keyboard 0 Movement Mouse Keybinds 0 Fullscreen 1 Font 32/SmallcapsGlow Map View 50x35 Zoom Use 0% Tactical HUD 1 Map Filters NONE Filters NONE Steam 1 RUN: 76b6acbe-5214-4e36-a9f9-3faec81aef8a